{"text_format":"2","workbook":"xlsx","n_sheets":12,"sheets":["Főösszesítő","Munkanem összesítő","2.Bontás, építőanyagok újraha","15.Zsaluzás és állványozás","19.Költségtérítések","21.Irtás, föld- és sziklamunka","33.Falazás és egyéb kőműves mu","36.Vakolás és rabicolás","42.Hideg-, meleg- és homlokzat","44.Fa- és műanyag szerkezet el","45.Fém nyílászáró és épületlak","47.Felületképzés"],"not_rendered":{"charts":0,"images":0,"macros":0,"external_links":0,"defined_names":0,"comments":0,"pivot_tables":0},"unopened":[],"bounds":{"document_bytes":16777216,"sheet_cells":100000,"run_cost":"one","rows_first":2000,"rows_last":500,"rows_between":2000,"halvings":0,"cell_chars":16384,"cell_head_chars":4096},"cells_cut":0,"cells_raw":0,"read":"whole","date_system":"1900"}

{"sheet":"Főösszesítő","index":0,"n_rows":8,"n_cols":4,"rows_kept":8,"cut":false,"hidden":false,"merged":[[0,0,0,3],[2,0,2,3],[5,2,5,3],[6,2,6,3],[7,2,7,3]]}
[]
[]
["Költségvetés főösszesítő"]
["Megnevezés",null,"Anyagköltség","Díjköltség"]
["1 Építmény közvetlen költségei",null,{"$f":"'Munkanem összesítő'!C12","v":0},{"$f":"'Munkanem összesítő'!D12","v":0}]
["2.1 ÁFA vetítési alap",null,{"$f":"ROUND(C5+D5,0)","v":0}]
["2.2 ÁFA",0.27,{"$f":"ROUND(C6*B7,0)","v":0}]
["3 A munka ára (HUF)",null,{"$f":"ROUND(C7+C6,0)","v":0}]

{"sheet":"Munkanem összesítő","index":1,"n_rows":12,"n_cols":4,"rows_kept":12,"cut":false,"hidden":false,"merged":[]}
["Ssz.","Megnevezés","Anyagköltség","Díjköltség"]
["2","Bontás, építőanyagok újrahasznosítása",{"$f":"'2.Bontás, építőanyagok újraha'!H3","v":0},{"$f":"'2.Bontás, építőanyagok újraha'!I3","v":0}]
["15","Zsaluzás és állványozás",{"$f":"'15.Zsaluzás és állványozás'!H3","v":0},{"$f":"'15.Zsaluzás és állványozás'!I3","v":0}]
["19","Költségtérítések",{"$f":"'19.Költségtérítések'!H3","v":0},{"$f":"'19.Költségtérítések'!I3","v":0}]
["21","Irtás, föld- és sziklamunka",{"$f":"'21.Irtás, föld- és sziklamunka'!H3","v":0},{"$f":"'21.Irtás, föld- és sziklamunka'!I3","v":0}]
["33","Falazás és egyéb kőműves munkák",{"$f":"'33.Falazás és egyéb kőműves mu'!H3","v":0},{"$f":"'33.Falazás és egyéb kőműves mu'!I3","v":0}]
["36","Vakolás és rabicolás",{"$f":"'36.Vakolás és rabicolás'!H5","v":0},{"$f":"'36.Vakolás és rabicolás'!I5","v":0}]
["42","Hideg-, meleg- és homlokzatburkolatok készítése, aljzat előkészítése",{"$f":"'42.Hideg-, meleg- és homlokzat'!H4","v":0},{"$f":"'42.Hideg-, meleg- és homlokzat'!I4","v":0}]
["44","Fa- és műanyag szerkezet elhelyezése",{"$f":"'44.Fa- és műanyag szerkezet el'!H4","v":0},{"$f":"'44.Fa- és műanyag szerkezet el'!I4","v":0}]
["45","Fém nyílászáró és épületlakatos szerkezet elhelyezése",{"$f":"'45.Fém nyílászáró és épületlak'!H3","v":0},{"$f":"'45.Fém nyílászáró és épületlak'!I3","v":0}]
["47","Felületképzés",{"$f":"'47.Felületképzés'!H6","v":0},{"$f":"'47.Felületképzés'!I6","v":0}]
[null,"Összesen (HUF)",{"$f":"ROUND(SUM(C2:C11),0)","v":0},{"$f":"ROUND(SUM(D2:D11),0)","v":0}]

{"sheet":"2.Bontás, építőanyagok újraha","index":2,"n_rows":3,"n_cols":9,"rows_kept":3,"cut":false,"hidden":false,"merged":[]}
["Ssz.","Tételszám","Tétel szövege","Menny.","Egység","Anyag egységár","Díj egységre","Anyag összesen","Díj összesen"]
[1,"02-030-7.1","Vegyes építési- bontási törmelék felrakása szállítóeszközre gépi erővel, kiegészítő kézi munkával",12,"m³",0,0,{"$f":"ROUND(F2*D2,0)","v":0},{"$f":"ROUND(G2*D2,0)","v":0}]
[null,null,"Munkanem összesen (HUF)",{"$nulls":4},{"$f":"ROUND(SUM(H2:H2),0)","v":0},{"$f":"ROUND(SUM(I2:I2),0)","v":0}]

{"sheet":"15.Zsaluzás és állványozás","index":3,"n_rows":3,"n_cols":9,"rows_kept":3,"cut":false,"hidden":false,"merged":[]}
["Ssz.","Tételszám","Tétel szövege","Menny.","Egység","Anyag egységár","Díj egységre","Anyag összesen","Díj összesen"]
[1,"15-017-2.2","Törmelékcsúszda készítése beömlőnyílásokkal ütésálló műanyagból (1,1 m-es elemekből)",10,"m",0,0,{"$f":"ROUND(F2*D2,0)","v":0},{"$f":"ROUND(G2*D2,0)","v":0}]
[null,null,"Munkanem összesen (HUF)",{"$nulls":4},{"$f":"ROUND(SUM(H2:H2),0)","v":0},{"$f":"ROUND(SUM(I2:I2),0)","v":0}]

{"sheet":"19.Költségtérítések","index":4,"n_rows":3,"n_cols":9,"rows_kept":3,"cut":false,"hidden":false,"merged":[]}
["Ssz.","Tételszám","Tétel szövege","Menny.","Egység","Anyag egységár","Díj egységre","Anyag összesen","Díj összesen"]
[1,"19-090-1","Építmények átadás előtti utolsó takarítása (pipere)",1,"db",0,0,{"$f":"ROUND(F2*D2,0)","v":0},{"$f":"ROUND(G2*D2,0)","v":0}]
[null,null,"Munkanem összesen (HUF)",{"$nulls":4},{"$f":"ROUND(SUM(H2:H2),0)","v":0},{"$f":"ROUND(SUM(I2:I2),0)","v":0}]

{"sheet":"21.Irtás, föld- és sziklamunka","index":5,"n_rows":3,"n_cols":9,"rows_kept":3,"cut":false,"hidden":false,"merged":[]}
["Ssz.","Tételszám","Tétel szövege","Menny.","Egység","Anyag egységár","Díj egységre","Anyag összesen","Díj összesen"]
[1,"21-011-11.2","Építési törmelék konténeres elszállítása, lerakása, lerakóhelyi díjjal, 4,0 m³-es konténerbe",3,"db",0,0,{"$f":"ROUND(F2*D2,0)","v":0},{"$f":"ROUND(G2*D2,0)","v":0}]
[null,null,"Munkanem összesen (HUF)",{"$nulls":4},{"$f":"ROUND(SUM(H2:H2),0)","v":0},{"$f":"ROUND(SUM(I2:I2),0)","v":0}]

{"sheet":"33.Falazás és egyéb kőműves mu","index":6,"n_rows":3,"n_cols":9,"rows_kept":3,"cut":false,"hidden":false,"merged":[]}
["Ssz.","Tételszám","Tétel szövege","Menny.","Egység","Anyag egységár","Díj egységre","Anyag összesen","Díj összesen"]
[1,"33-000-21.1.1.1.3.1","Válaszfal bontása, égetett agyag-kerámia termékekből, erősítő pillérrel vagy erősítő pillér nélkül falazva, kisméretű, mészhomok, magasított vagy nagyméretű téglából, 12 - 14 cm vastagságig (féltégla), falazó, cementes mészhabarcsból falazva",43,"m²",0,0,{"$f":"ROUND(F2*D2,0)","v":0},{"$f":"ROUND(G2*D2,0)","v":0}]
[null,null,"Munkanem összesen (HUF)",{"$nulls":4},{"$f":"ROUND(SUM(H2:H2),0)","v":0},{"$f":"ROUND(SUM(I2:I2),0)","v":0}]

{"sheet":"36.Vakolás és rabicolás","index":7,"n_rows":5,"n_cols":9,"rows_kept":5,"cut":false,"hidden":false,"merged":[]}
["Ssz.","Tételszám","Tétel szövege","Menny.","Egység","Anyag egységár","Díj egységre","Anyag összesen","Díj összesen"]
[1,"36-090-2.1.2","Vakolatok pótlása, keskenyvakolatok pótlása oldalfalon, 11-20 cm szélesség között",16,"m",0,0,{"$f":"ROUND(F2*D2,0)","v":0},{"$f":"ROUND(G2*D2,0)","v":0}]
[2,"36-090-2.2.2","Vakolatok pótlása, keskenyvakolatok pótlása mennyezeten, 11-20 cm szélesség között",10.7,"m",0,0,{"$f":"ROUND(F3*D3,0)","v":0},{"$f":"ROUND(G3*D3,0)","v":0}]
[3,"36-090-1.1.1-0550030","Vakolatjavítás oldalfalon, tégla-, beton-, kőfelületen vagy építőlemezen, a meglazult, sérült vakolat előzetes leverésével, hiánypótlás 5% alatt, Hvb4-mc, beltéri, vakoló, cementes mészhabarcs mészpéppel",1,"m²",0,0,{"$f":"ROUND(F4*D4,0)","v":0},{"$f":"ROUND(G4*D4,0)","v":0}]
[null,null,"Munkanem összesen (HUF)",{"$nulls":4},{"$f":"ROUND(SUM(H2:H4),0)","v":0},{"$f":"ROUND(SUM(I2:I4),0)","v":0}]

{"sheet":"42.Hideg-, meleg- és homlokzat","index":8,"n_rows":4,"n_cols":9,"rows_kept":4,"cut":false,"hidden":false,"merged":[]}
["Ssz.","Tételszám","Tétel szövege","Menny.","Egység","Anyag egységár","Díj egységre","Anyag összesen","Díj összesen"]
[1,"K 42-090-6.5.8","Fa-, hézagmentes és műanyagburkolatok javítása, lécparketta csukás megszüntetett válaszfal mentén, Csaphornyos parketta, tölgy. Elbontott válaszfal helyén padlóburkolat pótlása, szintkülönbségek megszüntetésével, felületkezeléssel, kompletten.",10.7,"m",0,0,{"$f":"ROUND(F2*D2,0)","v":0},{"$f":"ROUND(G2*D2,0)","v":0}]
[2,"42-000-3.6","Fa-, hézagmentes műanyag- és szőnyegburkolatok bontása, keményfa lábazati deszka vagy falvédő deszka, 25 cm szélességig",20.399999999999999,"m",0,0,{"$f":"ROUND(F3*D3,0)","v":0},{"$f":"ROUND(G3*D3,0)","v":0}]
[null,null,"Munkanem összesen (HUF)",{"$nulls":4},{"$f":"ROUND(SUM(H2:H3),0)","v":0},{"$f":"ROUND(SUM(I2:I3),0)","v":0}]

{"sheet":"44.Fa- és műanyag szerkezet el","index":9,"n_rows":4,"n_cols":9,"rows_kept":4,"cut":false,"hidden":false,"merged":[]}
["Ssz.","Tételszám","Tétel szövege","Menny.","Egység","Anyag egységár","Díj egységre","Anyag összesen","Díj összesen"]
[1,"44-000-1.1","Fa vagy műanyag nyílászáró szerkezetek bontása, ajtó, ablak vagy kapu, 2,00 m²-ig",2,"m²",0,0,{"$f":"ROUND(F2*D2,0)","v":0},{"$f":"ROUND(G2*D2,0)","v":0}]
[2,"44-090-11.17","Ajtószerelvények pótlása, cseréje, ajtózár kilinccsel, címmel, cilinderbetéttel és kulccsal",1,"készlet",0,0,{"$f":"ROUND(F3*D3,0)","v":0},{"$f":"ROUND(G3*D3,0)","v":0}]
[null,null,"Munkanem összesen (HUF)",{"$nulls":4},{"$f":"ROUND(SUM(H2:H3),0)","v":0},{"$f":"ROUND(SUM(I2:I3),0)","v":0}]

{"sheet":"45.Fém nyílászáró és épületlak","index":10,"n_rows":3,"n_cols":9,"rows_kept":3,"cut":false,"hidden":false,"merged":[]}
["Ssz.","Tételszám","Tétel szövege","Menny.","Egység","Anyag egységár","Díj egységre","Anyag összesen","Díj összesen"]
[1,"K 45-005-2.7","Egyéb épületlakatos szerkezetek elhelyezése. Meglévő mennyezeti lámpatest tartó acélváz szerkezet átalakítása, téglafalba rögzítve, felületkezelve, mázolva.",1,"db",0,0,{"$f":"ROUND(F2*D2,0)","v":0},{"$f":"ROUND(G2*D2,0)","v":0}]
[null,null,"Munkanem összesen (HUF)",{"$nulls":4},{"$f":"ROUND(SUM(H2:H2),0)","v":0},{"$f":"ROUND(SUM(I2:I2),0)","v":0}]

{"sheet":"47.Felületképzés","index":11,"n_rows":6,"n_cols":9,"rows_kept":6,"cut":false,"hidden":false,"merged":[]}
["Ssz.","Tételszám","Tétel szövege","Menny.","Egység","Anyag egységár","Díj egységre","Anyag összesen","Díj összesen"]
[1,"47-000-1.3.1.1","Belső festéseknél felület előkészítése, részmunkák; vizes diszperziós falfesték lekaparása, bármilyen padozatú helységben, tagolatlan felületen",5,"m²",0,0,{"$f":"ROUND(F2*D2,0)","v":0},{"$f":"ROUND(G2*D2,0)","v":0}]
[2,"47-000-1.21.4.1.1-0419482","Belső festéseknél felület előkészítése, részmunkák; glettelés diszperziós kötőanyagú glettel, vakolt felületen, tagolatlan felületen, POLI-FARBE kész glett, beltéri, kézi- és gépi felhordásra",10,"m²",0,0,{"$f":"ROUND(F3*D3,0)","v":0},{"$f":"ROUND(G3*D3,0)","v":0}]
[3,"47-010-3.1.1-0419506","Enyhén porózus, nedvszívó, gyengén homokosodó falfelületek felületmegerősítő mélyalapozása, vizes-diszperziós mélyalapozóval, tagolatlan felületen, POLI-FARBE Inntaler diszperziós mélyalapozó",10,"m²",0,0,{"$f":"ROUND(F4*D4,0)","v":0},{"$f":"ROUND(G4*D4,0)","v":0}]
[4,"47-011-15.1.1.1-0160011","Diszperziós festés (két rétegben) műanyag bázisú vizes-diszperziós  fehér vagy gyárilag színezett festékkel, új vagy régi lekapart, előkészített alapfelületen, vakolaton, két rétegben, tagolatlan sima felületen, POLI-FARBE Inntaler diszperziós beltéri, fehér falfesték",10,"m²",0,0,{"$f":"ROUND(F5*D5,0)","v":0},{"$f":"ROUND(G5*D5,0)","v":0}]
[null,null,"Munkanem összesen (HUF)",{"$nulls":4},{"$f":"ROUND(SUM(H2:H5),0)","v":0},{"$f":"ROUND(SUM(I2:I5),0)","v":0}]